fUSD/lending_fUSD_20260515
["ID","MTS","AMOUNT","RATE_DAILY","PERIOD"]
[422297275,1778797851000,-607.0,0.00037877,16]
[422297281,1778797851000,-150.0,0.00037944,7]
[422297295,1778797851000,-200.0,0.000381,15]
[422297282,1778797851000,-153.24627148,0.00037956,7]
[422297285,1778797851000,-6503.90587747,0.00037984,2]
[422297283,1778797851000,-434.0663,0.0003796,2]
[422297292,1778797851000,-555.13082857,0.00038,2]
[422297288,1778797851000,-5000.0,0.00037984,2]
[422297293,1778797851000,-153.24627148,0.00038033,7]
[422297294,1778797851000,-153.24627148,0.00038071,7]
[422297290,1778797851000,-153.24627148,0.00037994,7]
[422297296,1778797851000,-20124.5424903,0.000381,33]
[422297291,1778797851000,-339.19,0.00038,60]
[422297289,1778797851000,-5000.0,0.00037984,2]
[422297270,1778797851000,-1817.69,0.000378,14]
[422297279,1778797851000,-150.0,0.00037928,7]
[422297268,1778797851000,-150.0,0.0003778,2]
[422297249,1778797851000,-150.0,0.00037565,7]
[422297267,1778797851000,-150.0,0.00037778,7]
[422297239,1778797851000,-153.24627148,0.00037455,7]
[422297299,1778797851000,-257.20275532,0.0003811,7]
[422297240,1778797851000,-320.98418438,0.00037475,2]
[422297243,1778797851000,-310.0,0.00037509,2]
[422297242,1778797851000,-355.28115469,0.00037509,2]
[422297241,1778797851000,-153.24627148,0.00037494,7]
[422297245,1778797851000,-620.0,0.00037509,2]
[422297244,1778797851000,-709.71884531,0.00037509,2]
[422297246,1778797851000,-150.0,0.00037523,7]
[422297247,1778797851000,-153.24627148,0.00037532,7]
[422297248,1778797851000,-150.0,0.00037563,2]
[422297250,1778797851000,-150.0,0.00037565,7]
[422297261,1778797851000,-153.24627148,0.00037725,7]
[422297265,1778797851000,-150.0,0.00037763,7]
[422297251,1778797851000,-153.24627148,0.00037571,7]
[422297257,1778797851000,-1000.0,0.00037615,2]
[422297258,1778797851000,-153.24627148,0.00037648,7]
[422297260,1778797851000,-153.24627148,0.00037686,7]
[422297252,1778797851000,-163.0,0.00037585,11]
[422297262,1778797851000,-150.0,0.00037747,7]
[422297256,1778797851000,-1000.0,0.00037615,2]
[422297255,1778797851000,-150.0,0.00037613,7]
[422297259,1778797851000,-150.0,0.00037686,30]
[422297253,1778797851000,-150.0,0.0003759,7]
[422297263,1778797851000,-1444.0,0.00037753,120]
[422297274,1778797851000,-153.24627148,0.0003784,7]
[422297264,1778797851000,-500.0,0.0003776,42]
[422297266,1778797851000,-153.24627148,0.00037763,7]
[422297254,1778797851000,-153.24627148,0.00037609,7]
[422297298,1778797851000,-178.11723745,0.0003811,7]
[422297304,1778797851000,-153.24627148,0.0003811,7]
[422297300,1778797851000,-216.21635276,0.0003811,7]
[422297329,1778797851000,-500.0,0.00038356,2]
[422297332,1778797851000,-500.0,0.00038356,2]
[422297331,1778797851000,-439.01416516,0.00038356,2]
[422297335,1778797851000,-500.0,0.00038356,2]
[422297337,1778797851000,-500.0,0.00038356,2]
[422297340,1778797851000,-500.0,0.00038356,2]
[422297339,1778797851000,-500.0,0.00038356,2]
[422297338,1778797851000,-500.0,0.00038356,2]
[422297341,1778797851000,-319.89781858,0.00038356,2]
[422297344,1778797851000,-2090.99,0.00038356,2]
[422297342,1778797851000,-2090.99,0.00038356,2]
[422297347,1778797851000,-2090.99,0.00038356,2]
[422297343,1778797851000,-2090.99,0.00038356,2]
[422297348,1778797851000,-2090.99,0.00038356,2]
[422297346,1778797851000,-2090.99,0.00038356,2]
[422297345,1778797851000,-2090.99,0.00038356,2]
[422297350,1778797851000,-2090.99,0.00038356,2]
[422297349,1778797851000,-2090.99,0.00038356,2]
[422297351,1778797851000,-2090.99,0.00038356,2]
[422297353,1778797851000,-2090.99,0.00038356,2]
[422297352,1778797851000,-2090.99,0.00038356,2]
[422297297,1778797851000,-185.30906992,0.0003811,30]
[422297356,1778797851000,-2090.99,0.00038356,2]
[422297357,1778797851000,-2090.99,0.00038356,2]
[422297359,1778797851000,-2090.99,0.00038356,2]
[422297354,1778797851000,-2090.99,0.00038356,2]
[422297358,1778797851000,-2090.99,0.00038356,2]
[422297333,1778797851000,-500.0,0.00038356,2]
[422297327,1778797851000,-500.0,0.00038356,2]
[422297355,1778797851000,-2090.99,0.00038356,2]
[422297330,1778797851000,-500.0,0.00038356,2]
[422297334,1778797851000,-500.0,0.00038356,2]
[422297302,1778797851000,-150.64066077,0.0003811,7]
[422297311,1778797851000,-500.0,0.00038356,2]
[422297303,1778797851000,-226.92243394,0.0003811,7]
[422297309,1778797851000,-387.29507479,0.00038329,120]
[422297310,1778797851000,-157.75351453,0.00038339,2]
[422297307,1778797851000,-2458.5,0.00038125,30]
[422297305,1778797851000,-232.9454173,0.0003811,7]
[422297306,1778797851000,-163.0,0.00038115,11]
[422297308,1778797851000,-179.98,0.00038248,60]
[422297313,1778797851000,-500.0,0.00038356,2]
[422297323,1778797851000,-500.0,0.00038356,2]
[422297318,1778797851000,-500.0,0.00038356,2]
[422297301,1778797851000,-166.64300097,0.0003811,7]
[422297317,1778797851000,-500.0,0.00038356,2]
[422297314,1778797851000,-500.0,0.00038356,2]
[422297328,1778797851000,-500.0,0.00038356,2]
[422297336,1778797851000,-500.0,0.00038356,2]
[422297324,1778797851000,-500.0,0.00038356,2]
[422297325,1778797851000,-500.0,0.00038356,2]
[422297322,1778797851000,-500.0,0.00038356,2]
[422297326,1778797851000,-500.0,0.00038356,2]
[422297316,1778797851000,-500.0,0.00038356,2]
[422297321,1778797851000,-500.0,0.00038356,2]
[422297315,1778797851000,-500.0,0.00038356,2]
[422297312,1778797851000,-500.0,0.00038356,2]
[422297319,1778797851000,-639.98815637,0.00038356,2]
[422297320,1778797851000,-500.0,0.00038356,2]
[422297383,1778797852000,-238.0,0.00038356,2]
[422297384,1778797852000,-284.4,0.00038362,30]
[422297389,1778797852000,-883.0,0.000384,2]
[422297386,1778797852000,-308.0,0.000384,2]
[422297387,1778797852000,-1000.0,0.000384,2]
[422297393,1778797852000,-500.0,0.00038444,30]
[422297390,1778797852000,-607.0,0.00038438,16]
[422297391,1778797852000,-1396.49,0.00038444,120]
[422297395,1778797852000,-193.09315557,0.00038577,2]
[422297405,1778797852000,-500.0,0.000387,120]
[422297399,1778797852000,-165.14129383,0.000387,7]
[422297396,1778797852000,-339.19,0.000386,90]
[422297407,1778797852000,-500.0,0.000387,120]
[422297406,1778797852000,-500.0,0.000387,120]
[422297397,1778797852000,-157.75351453,0.00038613,2]
[422297398,1778797852000,-1396.49,0.00038644,120]
[422297404,1778797852000,-500.0,0.000387,120]
[422297400,1778797852000,-500.0,0.000387,120]
[422297403,1778797852000,-500.0,0.000387,120]
[422297385,1778797852000,-257.78801977,0.000384,5]
[422297394,1778797852000,-1396.49,0.00038544,120]
[422297392,1778797852000,-500.0,0.00038444,30]
[422297371,1778797852000,-350.0,0.00038356,2]
[422297382,1778797852000,-250.0,0.00038356,2]
[422297360,1778797852000,-2090.99,0.00038356,2]
[422297363,1778797852000,-2090.99,0.00038356,2]
[422297361,1778797852000,-2090.99,0.00038356,2]
[422297362,1778797852000,-2090.99,0.00038356,2]
[422297367,1778797852000,-1000.0,0.00038356,2]
[422297364,1778797852000,-2090.99,0.00038356,2]
[422297365,1778797852000,-2091.22847976,0.00038356,2]
[422297366,1778797852000,-1000.0,0.00038356,2]
[422297368,1778797852000,-1000.0,0.00038356,2]
[422297369,1778797852000,-1000.0,0.00038356,2]
[422297373,1778797852000,-273.0,0.00038356,2]
[422297370,1778797852000,-350.0,0.00038356,2]
[422297377,1778797852000,-281.0,0.00038356,2]
[422297379,1778797852000,-350.0,0.00038356,2]
[422297380,1778797852000,-242.0,0.00038356,2]
[422297372,1778797852000,-311.0,0.00038356,2]
[422297374,1778797852000,-250.0,0.00038356,2]
[422297376,1778797852000,-247.0,0.00038356,2]
[422297378,1778797852000,-350.0,0.00038356,2]
[422297375,1778797852000,-250.0,0.00038356,2]
[422297381,1778797852000,-250.0,0.00038356,2]
[422297388,1778797852000,-314.0,0.000384,2]
[422297402,1778797852000,-500.0,0.000387,120]
[422297411,1778797852000,-500.0,0.000387,120]
[422297410,1778797852000,-500.0,0.000387,120]
[422297443,1778797852000,-151.0,0.00038978,60]
[422297435,1778797852000,-3899.04112589,0.000389,30]
[422297438,1778797852000,-157.60114915,0.00038904,30]
[422297436,1778797852000,-3899.04112589,0.000389,30]
[422297441,1778797852000,-1396.49,0.00038944,120]
[422297440,1778797852000,-274151.19869049,0.00038932,2]
[422297437,1778797852000,-307.92,0.00038902,120]
[422297439,1778797852000,-171.08643904,0.00038904,30]
[422297442,1778797852000,-152.0,0.00038946,30]
[422297445,1778797852000,-1817.69,0.00039,14]
[422297455,1778797852000,-665.2968157,0.00039074,120]
[422297444,1778797852000,-2209.03,0.00039,30]
[422297446,1778797852000,-553.0,0.00039,30]
[422297447,1778797852000,-607.0,0.00039,17]
[422297452,1778797852000,-171.08643904,0.00039068,30]
[422297449,1778797852000,-1396.55999994,0.00039044,120]
[422297450,1778797852000,-1223.0,0.00039059,2]
[422297448,1778797852000,-689.2,0.00039025,120]
[422297451,1778797852000,-3630.0,0.00039059,2]
[422297453,1778797852000,-357.00571788,0.00039073,14]
[422297401,1778797852000,-500.0,0.000387,120]
[422297434,1778797852000,-3899.0411259,0.000389,30]
[422297432,1778797852000,-152.0,0.00038898,8]
[422297454,1778797852000,-191.216409,0.00039074,120]
[422297425,1778797852000,-376.91495057,0.0003885,30]
[422297433,1778797852000,-2000.0,0.000389,7]
[422297408,1778797852000,-500.0,0.000387,120]
[422297412,1778797852000,-500.0,0.000387,120]
[422297409,1778797852000,-500.0,0.000387,120]
[422297413,1778797852000,-500.0,0.000387,120]
[422297414,1778797852000,-500.0,0.000387,120]
[422297416,1778797852000,-500.0,0.000387,120]
[422297415,1778797852000,-500.0,0.000387,120]
[422297417,1778797852000,-500.0,0.000387,120]
[422297430,1778797852000,-152.0,0.00038891,30]
[422297431,1778797852000,-500.0,0.00038893,48]
[422297418,1778797852000,-500.0,0.000387,120]
[422297420,1778797852000,-1396.49,0.00038744,120]
[422297422,1778797852000,-163.0,0.00038835,11]
[422297421,1778797852000,-168.96,0.00038809,5]
[422297419,1778797852000,-500.0,0.000387,120]
[422297423,1778797852000,-1396.49,0.00038844,120]
[422297426,1778797852000,-376.91495057,0.0003885,30]
[422297428,1778797852000,-434.0663,0.00038886,2]
[422297424,1778797852000,-185.42511022,0.00038844,120]
[422297427,1778797852000,-376.91495057,0.0003885,30]
[422297429,1778797852000,-157.75351453,0.00038887,2]
[422297495,1778797853000,-171.08643904,0.00039534,30]
[422297493,1778797853000,-168.87304594,0.00039522,7]
[422297489,1778797853000,-172.68364706,0.00039522,7]
[422297491,1778797853000,-193.21930295,0.00039522,7]
[422297490,1778797853000,-154.31605078,0.00039522,7]
[422297487,1778797853000,-162.28955297,0.00039522,7]
[422297486,1778797853000,-158.61543282,0.00039522,7]
[422297485,1778797853000,-500.0,0.00039503,60]
[422297481,1778797853000,-19126.14,0.000395,2]
[422297494,1778797853000,-152.0,0.00039529,7]
[422297488,1778797853000,-188.75044144,0.00039522,7]
[422297496,1778797853000,-2311.0,0.00039556,11]
[422297507,1778797853000,-174.24494306,0.00039614,7]
[422297498,1778797853000,-607.0,0.00039562,17]
[422297492,1778797853000,-181.03570247,0.00039522,7]
[422297502,1778797853000,-189.49631766,0.00039614,7]
[422297499,1778797853000,-152.0,0.00039612,7]
[422297501,1778797853000,-177.48021393,0.00039614,7]
[422297500,1778797853000,-196.26987389,0.00039614,7]
[422297503,1778797853000,-188.30164613,0.00039614,7]
[422297510,1778797853000,-222.33101675,0.00039614,7]
[422297508,1778797853000,-190.97774448,0.00039614,2]
[422297504,1778797853000,-187.38370388,0.00039614,7]
[422297482,1778797853000,-150.0,0.000395,120]
[422297497,1778797853000,-152.0,0.00039557,7]
[422297479,1778797853000,-200.0,0.0003947,30]
[422297458,1778797853000,-157.60114915,0.00039096,30]
[422297476,1778797853000,-2633.73703763,0.0003943,14]
[422297457,1778797853000,-181.6934164,0.00039074,120]
[422297456,1778797853000,-261.2811878,0.00039074,120]
[422297509,1778797853000,-198.67858927,0.00039614,7]
[422297459,1778797853000,-200.0,0.000391,16]
[422297460,1778797853000,-157.75351453,0.00039161,2]
[422297468,1778797853000,-251.25,0.000393,10]
[422297469,1778797853000,-591.25,0.000393,10]
[422297463,1778797853000,-163.0,0.00039253,11]
[422297467,1778797853000,-1356.77,0.000393,10]
[422297464,1778797853000,-214.80165755,0.00039282,120]
[422297471,1778797853000,-153.53575959,0.00039342,30]
[422297477,1778797853000,-157.75351453,0.00039435,2]
[422297462,1778797853000,-171.08643904,0.00039233,30]
[422297466,1778797853000,-1584.0,0.0003929,11]
[422297470,1778797853000,-609.37,0.000393,10]
[422297465,1778797853000,-157.60114915,0.00039288,30]
[422297473,1778797853000,-171.08643904,0.0003937,30]
[422297472,1778797853000,-689.15,0.00039349,120]
[422297484,1778797853000,-500.0,0.00039503,60]
[422297478,1778797853000,-158.0,0.00039438,3]
[422297475,1778797853000,-163.0,0.0003941,11]
[422297483,1778797853000,-600.0,0.00039503,60]
[422297480,1778797853000,-157.60114915,0.00039479,30]
[422297474,1778797853000,-1651.0,0.00039408,11]
[422297461,1778797853000,-1000.0,0.00039183,2]
[422297506,1778797853000,-162.41368281,0.00039614,7]
[422297505,1778797853000,-195.1373017,0.00039614,7]
[422297522,1778797853000,-152.26338691,0.00039619,7]
[422297541,1778797853000,-177.31601399,0.00039619,7]
[422297542,1778797853000,-155.38520837,0.00039619,7]
[422297545,1778797853000,-159.19995052,0.00039619,7]
[422297543,1778797853000,-173.95697721,0.00039619,7]
[422297544,1778797853000,-181.18663458,0.00039619,7]
[422297547,1778797853000,-500.0,0.0003963,120]
[422297548,1778797853000,-500.0,0.0003963,120]
[422297551,1778797853000,-163.0,0.0003966,11]
[422297556,1778797853000,-171.08643904,0.00039699,30]
[422297549,1778797853000,-500.0,0.0003963,120]
[422297557,1778797853000,-157.75351453,0.00039709,2]
[422297552,1778797853000,-163.0,0.0003966,11]
[422297550,1778797853000,-163.0,0.00039653,11]
[422297554,1778797853000,-157.60114915,0.00039671,30]
[422297555,1778797853000,-689.15,0.00039673,120]
[422297559,1778797853000,-5000.0,0.00039726,120]
[422297558,1778797853000,-3760.11509497,0.00039726,15]
[422297561,1778797853000,-300.0,0.00039726,120]
[422297566,1778797853000,-300.0,0.00039726,120]
[422297563,1778797853000,-300.0,0.00039726,120]
[422297562,1778797853000,-300.0,0.00039726,120]
[422297565,1778797853000,-300.0,0.00039726,120]
[422297560,1778797853000,-300.0,0.00039726,120]
[422297512,1778797853000,-173.46478711,0.00039614,7]
[422297564,1778797853000,-300.0,0.00039726,120]
[422297539,1778797853000,-161.07976337,0.00039619,7]
[422297540,1778797853000,-170.67750311,0.00039619,7]
[422297553,1778797853000,-150.0,0.00039669,2]
[422297537,1778797853000,-171.82824574,0.00039619,7]
[422297513,1778797853000,-176.83692003,0.00039614,7]
[422297511,1778797853000,-166.38988526,0.00039614,7]
[422297546,1778797853000,-182.70958588,0.00039619,7]
[422297514,1778797853000,-399.95986705,0.00039614,7]
[422297516,1778797853000,-435.74259626,0.00039614,7]
[422297517,1778797853000,-253.44386285,0.00039614,7]
[422297518,1778797853000,-452.36182138,0.00039614,7]
[422297515,1778797853000,-194.53371247,0.00039614,7]
[422297519,1778797853000,-208.25562766,0.00039619,5]
[422297520,1778797853000,-171.56465289,0.00039619,7]
[422297523,1778797853000,-189.57479519,0.00039619,7]
[422297525,1778797853000,-297.93403367,0.00039619,7]
[422297524,1778797853000,-171.51626384,0.00039619,7]
[422297521,1778797853000,-393.99651846,0.00039619,7]
[422297536,1778797853000,-182.19144915,0.00039619,7]
[422297534,1778797853000,-200.67663736,0.00039619,7]
[422297528,1778797853000,-155.06730887,0.00039619,7]
[422297530,1778797853000,-183.55829768,0.00039619,7]
[422297526,1778797853000,-150.64646659,0.00039619,7]
[422297532,1778797853000,-160.93476339,0.00039619,7]
[422297531,1778797853000,-150.35394767,0.00039619,7]
[422297535,1778797853000,-224.42911445,0.00039619,7]
[422297527,1778797853000,-183.16525332,0.00039619,7]
[422297533,1778797853000,-284.93649021,0.00039619,7]
[422297538,1778797853000,-184.58874797,0.00039619,7]
[422297529,1778797853000,-159.5652689,0.00039619,7]
[422297602,1778797854000,-1078.54,0.0004,30]
[422297607,1778797854000,-392.85279094,0.0004,60]
[422297615,1778797854000,-500.0,0.0004,120]
[422297606,1778797854000,-151.0,0.0004,120]
[422297600,1778797854000,-854.4,0.0004,120]
[422297595,1778797854000,-201.52,0.0004,120]
[422297599,1778797854000,-755.35,0.0004,120]
[422297603,1778797854000,-171.08643904,0.0004,30]
[422297604,1778797854000,-206.0,0.0004,120]
[422297597,1778797854000,-442.62,0.0004,120]
[422297612,1778797854000,-500.0,0.0004,120]
[422297598,1778797854000,-671.02,0.0004,120]
[422297613,1778797854000,-500.0,0.0004,120]
[422297619,1778797854000,-500.0,0.0004,120]
[422297610,1778797854000,-500.0,0.0004,120]
[422297608,1778797854000,-500.0,0.0004,120]
[422297609,1778797854000,-500.0,0.0004,120]
[422297611,1778797854000,-500.0,0.0004,120]
[422297614,1778797854000,-500.0,0.0004,120]
[422297618,1778797854000,-500.0,0.0004,120]
[422297620,1778797854000,-500.0,0.0004,120]
[422297621,1778797854000,-496.56023026,0.0004,120]
[422297627,1778797854000,-330.28258766,0.00040086,7]
[422297628,1778797854000,-200.0,0.000401,16]
[422297623,1778797854000,-157.60114915,0.00040055,30]
[422297594,1778797854000,-398.34,0.0004,120]
[422297617,1778797854000,-500.0,0.0004,120]
[422297596,1778797854000,-198.12,0.0004,120]
[422297568,1778797854000,-300.0,0.00039726,120]
[422297601,1778797854000,-3503.45,0.0004,120]
[422297629,1778797854000,-2209.03,0.000401,30]
[422297569,1778797854000,-300.0,0.00039726,120]
[422297567,1778797854000,-300.0,0.00039726,120]
[422297570,1778797854000,-300.0,0.00039726,120]
[422297574,1778797854000,-1913.10364057,0.0003977,2]
[422297572,1778797854000,-300.0,0.00039726,120]
[422297573,1778797854000,-300.0,0.00039726,120]
[422297576,1778797854000,-150.0,0.00039805,2]
[422297571,1778797854000,-300.0,0.00039726,120]
[422297578,1778797854000,-4335.46,0.00039808,60]
[422297575,1778797854000,-153.53575959,0.00039781,30]
[422297580,1778797854000,-246.49,0.00039808,60]
[422297581,1778797854000,-171.08643904,0.00039836,30]
[422297577,1778797854000,-50000.0,0.00039808,60]
[422297579,1778797854000,-50000.0,0.00039808,60]
[422297583,1778797854000,-165.51493618,0.0003989,2]
[422297585,1778797854000,-151.0,0.00039978,60]
[422297593,1778797854000,-345.85,0.0004,120]
[422297582,1778797854000,-157.60114915,0.00039863,30]
[422297584,1778797854000,-979.52995655,0.000399,30]
[422297586,1778797854000,-157.75351453,0.00039983,2]
[422297587,1778797854000,-689.15,0.00039998,120]
[422297589,1778797854000,-3840.95,0.0004,120]
[422297590,1778797854000,-553.0,0.0004,30]
[422297591,1778797854000,-361.73,0.0004,120]
[422297592,1778797854000,-153.65,0.0004,120]
[422297588,1778797854000,-6020.6288302,0.0004,2]
[422297605,1778797854000,-150.0,0.0004,120]
[422297625,1778797854000,-500.0,0.00040059,54]
[422297616,1778797854000,-500.0,0.0004,120]
[422297622,1778797854000,-210.84,0.00040022,120]
[422297660,1778797854000,-300.0,0.00040279,2]
[422297661,1778797854000,-300.0,0.00040279,2]
[422297655,1778797854000,-260.0,0.00040274,73]
[422297658,1778797854000,-300.0,0.00040279,2]
[422297659,1778797854000,-300.0,0.00040279,2]
[422297666,1778797854000,-260.0,0.00040285,73]
[422297667,1778797854000,-260.0,0.0004029,73]
[422297677,1778797854000,-260.0,0.00040309,73]
[422297668,1778797854000,-351.01,0.0004029,60]
[422297678,1778797854000,-1000.0,0.00040312,90]
[422297671,1778797854000,-2328.6,0.0004029,60]
[422297670,1778797854000,-851.46,0.0004029,60]
[422297669,1778797854000,-600.58,0.0004029,60]
[422297673,1778797854000,-163.0,0.00040298,11]
[422297674,1778797854000,-260.0,0.000403,73]
[422297675,1778797854000,-260.0,0.00040305,73]
[422297672,1778797854000,-260.0,0.00040295,73]
[422297676,1778797854000,-260.0,0.00040309,73]
[422297680,1778797854000,-260.0,0.00040318,74]
[422297681,1778797854000,-689.15,0.00040322,120]
[422297679,1778797854000,-260.0,0.00040314,74]
[422297686,1778797854000,-1000.0,0.00040331,90]
[422297685,1778797854000,-171.08643904,0.00040329,30]
[422297682,1778797854000,-260.0,0.00040323,74]
[422297683,1778797854000,-600.0,0.00040325,60]
[422297684,1778797854000,-260.0,0.00040327,74]
[422297624,1778797854000,-163.0,0.00040059,11]
[422297654,1778797854000,-260.0,0.00040274,73]
[422297656,1778797854000,-300.0,0.00040279,2]
[422297687,1778797854000,-260.0,0.00040331,74]
[422297662,1778797854000,-300.0,0.00040279,2]
[422297657,1778797854000,-300.0,0.00040279,2]
[422297631,1778797854000,-607.0,0.00040123,18]
[422297630,1778797854000,-1817.69,0.000401,14]
[422297634,1778797854000,-1000.0,0.00040179,90]
[422297632,1778797854000,-500.54726343,0.0004014,30]
[422297639,1778797854000,-2005.9555727,0.00040191,7]
[422297640,1778797854000,-2080.17592889,0.00040191,7]
[422297637,1778797854000,-1865.36488657,0.00040191,7]
[422297638,1778797854000,-1934.38338737,0.00040191,7]
[422297636,1778797854000,-1798.80895522,0.00040191,7]
[422297633,1778797854000,-171.08643904,0.00040164,30]
[422297635,1778797854000,-1005.40144569,0.00040183,120]
[422297641,1778797854000,-2157.14243826,0.00040191,7]
[422297647,1778797854000,-2682.57183977,0.00040191,7]
[422297626,1778797854000,-163.0,0.00040064,11]
[422297644,1778797854000,-2405.55389864,0.00040191,7]
[422297652,1778797854000,-157.60114915,0.00040247,30]
[422297664,1778797854000,-423.74,0.00040279,2]
[422297663,1778797854000,-300.0,0.00040279,2]
[422297665,1778797854000,-260.0,0.00040279,73]
[422297648,1778797854000,-2781.82699784,0.00040191,7]
[422297651,1778797854000,-575.0,0.00040213,11]
[422297653,1778797854000,-157.75351453,0.00040257,2]
[422297650,1778797854000,-2991.49051684,0.00040191,7]
[422297649,1778797854000,-2884.75459676,0.00040191,7]
[422297643,1778797854000,-2319.72410669,0.00040191,7]
[422297642,1778797854000,-2236.95670848,0.00040191,7]
[422297646,1778797854000,-2586.85809042,0.00040191,7]
[422297645,1778797854000,-2494.55939289,0.00040191,7]
[422297727,1778797855000,-500.0,0.00040416,30]
[422297728,1778797855000,-500.0,0.00040416,30]
[422297730,1778797855000,-260.0,0.00040419,75]
[422297729,1778797855000,-443.16,0.00040416,30]
[422297716,1778797855000,-150.0,0.000404,30]
[422297724,1778797855000,-219.4892142,0.00040414,120]
[422297723,1778797855000,-260.0,0.00040411,75]
[422297718,1778797855000,-260.0,0.00040403,75]
[422297719,1778797855000,-548.81843111,0.00040405,2]
[422297722,1778797855000,-260.0,0.00040409,75]
[422297726,1778797855000,-260.0,0.00040416,75]
[422297734,1778797855000,-150.0,0.0004042,10]
[422297738,1778797855000,-150.0,0.0004042,10]
[422297732,1778797855000,-150.0,0.0004042,10]
[422297736,1778797855000,-150.0,0.0004042,10]
[422297735,1778797855000,-150.0,0.0004042,10]
[422297733,1778797855000,-150.0,0.0004042,10]
[422297748,1778797855000,-150.0,0.0004042,10]
[422297749,1778797855000,-150.0,0.0004042,10]
[422297741,1778797855000,-155.0,0.0004042,10]
[422297737,1778797855000,-150.0,0.0004042,10]
[422297740,1778797855000,-150.0,0.0004042,10]
[422297739,1778797855000,-150.0,0.0004042,10]
[422297742,1778797855000,-150.0,0.0004042,60]
[422297744,1778797855000,-150.0,0.0004042,10]
[422297720,1778797855000,-260.0,0.00040406,75]
[422297731,1778797855000,-186.0,0.0004042,60]
[422297721,1778797855000,-260.0,0.00040407,75]
[422297698,1778797855000,-260.0,0.00040365,74]
[422297714,1778797855000,-260.0,0.00040395,75]
[422297691,1778797855000,-260.0,0.0004034,74]
[422297690,1778797855000,-260.0,0.00040339,74]
[422297689,1778797855000,-260.0,0.00040336,74]
[422297688,1778797855000,-284.49,0.00040335,30]
[422297692,1778797855000,-260.0,0.00040344,74]
[422297693,1778797855000,-260.0,0.00040348,74]
[422297703,1778797855000,-2888.05498505,0.0004037,28]
[422297701,1778797855000,-163.0,0.0004037,11]
[422297697,1778797855000,-260.0,0.00040363,74]
[422297699,1778797855000,-260.0,0.00040366,74]
[422297695,1778797855000,-260.0,0.00040355,74]
[422297696,1778797855000,-260.0,0.00040359,74]
[422297700,1778797855000,-260.0,0.0004037,75]
[422297694,1778797855000,-260.0,0.00040352,74]
[422297702,1778797855000,-537.11041522,0.0004037,120]
[422297705,1778797855000,-260.0,0.00040376,75]
[422297704,1778797855000,-260.0,0.00040373,75]
[422297706,1778797855000,-260.0,0.0004038,75]
[422297713,1778797855000,-260.0,0.00040392,75]
[422297709,1778797855000,-260.0,0.00040383,75]
[422297710,1778797855000,-260.0,0.00040386,75]
[422297711,1778797855000,-260.0,0.00040387,75]
[422297707,1778797855000,-150.0,0.0004038,120]
[422297712,1778797855000,-260.0,0.00040389,75]
[422297708,1778797855000,-150.0,0.0004038,120]
[422297715,1778797855000,-260.0,0.00040398,75]
[422297717,1778797855000,-260.0,0.00040401,75]
[422297725,1778797855000,-260.0,0.00040414,75]
[422297745,1778797855000,-150.0,0.0004042,10]
[422297747,1778797855000,-150.0,0.0004042,10]
[422297746,1778797855000,-150.0,0.0004042,10]
[422297778,1778797855000,-500.0,0.00040469,120]